[Event "22nd ETCC Women 2019"]
[Site "Batumi"]
[Date "2019.10.28"]
[Round "5.24"]
[White "Gvetadze, Sofio"]
[Black "Calzetta Ruiz, Monica"]
[Result "1-0"]
[ECO "B50"]
[WhiteElo "2297"]
[BlackElo "2251"]
[Annotator "NA"]
[PlyCount "89"]
[EventDate "2019.10.24"]
[EventType "team-tourn"]
[EventCountry "GEO"]
[SourceTitle "playchess.com"]
[Source "ChessBase"]
[SourceQuality "1"]
[WhiteTeam "Georgia"]
[BlackTeam "Spain"]
[WhiteTeamCountry "GEO"]
[BlackTeamCountry "ESP"]
[TimeControl "40/5400+30:1800+30"]

1. e4 {[%emt 0:00:00]} c5 {[%emt 0:00:00]} 2. Nf3 {[%emt 0:00:00]} d6 {[%emt 0:00:16]} 3. c3 {[%emt 0:00:01]} Nf6 {[%emt 0:00:47]} 4. Be2 {[%emt 0:00:13]} Bd7 {[%emt 0:00:30]} 5. e5 {[%emt 0:02:44]} dxe5 {[%emt 0:00:09]} 6. Nxe5 {[%emt 0:00:05]} Nc6 {[%emt 0:00:14]} 7. d4 {[%emt 0:01:04]} cxd4 {[%emt 0:00:34]} 8. cxd4 {[%emt 0:00:57]} Nxe5 {[%emt 0:03:29]} 9. dxe5 {[%emt 0:00:30]} Qa5+ {[%emt 0:00:07]} 10. Nc3 {[%emt 0:04:38]} Qxe5 {[%emt 0:03:11]} 11. O-O {[%emt 0:00:29]} e6 {[%emt 0:09:01]} 12. Bf3 {[%emt 0:00:47]} Qc7 {[%emt 0:26:11]} 13. Be3 {[%emt 0:04:13]} Be7 {[%emt 0:03:42]} 14. Rc1 {[%emt 0:00:55]} Qa5 {[%emt 0:07:02]} 15. Bxb7 {[%emt 0:04:44]} Rb8 {[%emt 0:00:28]} 16. Qf3 {[%emt 0:01:46]} O-O {[%emt 0:01:53]} 17. Rc2 {[%emt 0:04:57]} Rfd8 {[%emt 0:03:22]} 18. h3 {[%emt 0:06:22]} h6 {[%emt 0:10:47]} 19. Rfc1 {[%emt 0:13:24]} Nh7 {[%emt 0:04:28]} 20. Be4 {[%emt 0:14:33]} Ng5 {[%emt 0:00:07]} 21. Qg3 {[%emt 0:06:12]} Be8 {[%emt 0:04:28]} 22. Bf4 {[%emt 0:03:10]} Rbc8 {[%emt 0:07:13]} 23. Bb7 {[%emt 0:02:15]} Rc4 {[%emt 0:00:04]} 24. b3 {[%emt 0:04:54]} Rxf4 {[%emt 0:04:56]} 25. Qxf4 {[%emt 0:00:06]} Bd6 {[%emt 0:03:00]} 26. Qc4 {[%emt 0:10:22]} Qe5 {[%emt 0:01:08]} 27. h4 {[%emt 0:00:39]} Qh2+ {[%emt 0:00:19]} 28. Kf1 {[%emt 0:00:01]} Bf4 {[%emt 0:02:14]} 29. Rd1 {[%emt 0:03:14]} Rxd1+ {[%emt 0:00:07]} 30. Nxd1 {[%emt 0:00:02]} Qh1+ {[%emt 0:00:07]} 31. Ke2 {[%emt 0:00:11]} Qxh4 {[%emt 0:00:02]} 32. Qc8 {[%emt 0:01:23]} Kf8 {[%emt 0:02:18]} 33. Bc6 {[%emt 0:00:27]} Qh5+ {[%emt 0:00:02]} 34. f3 {[%emt 0:00:13]} f5 {[%emt 0:00:13]} 35. Qxe8+ {[%emt 0:00:15]} Qxe8 {[%emt 0:00:04]} 36. Bxe8 {[%emt 0:00:05]} Kxe8 {[%emt 0:00:03]} 37. Rc8+ {[%emt 0:00:05]} Ke7 {[%emt 0:01:32]} 38. Ra8 {[%emt 0:00:04]} h5 {[%emt 0:00:29]} 39. Rxa7+ {[%emt 0:00:30]} Kf6 {[%emt 0:00:03]} 40. Ne3 {[%emt 0:00:00]} h4 {[%emt 0:00:00]} 41. a4 {[%emt 0:04:59]} h3 {[%emt 0:06:15]} 42. gxh3 {[%emt 0:00:04]} Nxh3 {[%emt 0:00:07]} 43. Rb7 {[%emt 0:04:09]} Ng1+ {[%emt 0:05:07]} 44. Kf2 {[%emt 0:04:05]} Nh3+ {[%emt 0:01:27]} 45. Kg2 {[%emt 0:00:13]} 1-0

[Event "22nd ETCC Women 2019"]
[Site "Batumi"]
[Date "2019.10.28"]
[Round "5.24"]
[White "Tamrazyan, Gohar"]
[Black "Bhatia, Kanwal K"]
[Result "0-1"]
[ECO "A05"]
[WhiteElo "1955"]
[BlackElo "2038"]
[Annotator "NA RC"]
[PlyCount "144"]
[EventDate "2019.10.24"]
[EventType "team-tourn"]
[EventCountry "GEO"]
[SourceTitle "playchess.com"]
[Source "ChessBase"]
[SourceQuality "1"]
[WhiteTeam "Switzerland"]
[BlackTeam "England"]
[WhiteTeamCountry "SUI"]
[BlackTeamCountry "ENG"]
[TimeControl "40/5400+30:1800+30"]

1. Nf3 {[%emt 0:00:00]} Nf6 {[%emt 0:00:00]} 2. e3 {[%emt 0:00:00]} g6 {[%emt 0:00:00]} 3. b4 {[%emt 0:00:10]} Bg7 {[%emt 0:00:00]} 4. Bb2 {[%emt 0:00:21]} O-O {[%emt 0:00:10]} 5. c4 {[%emt 0:00:19]} d6 {[%emt 0:01:23]} 6. Be2 {[%emt 0:00:31]} e5 {[%emt 0:01:26]} 7. d3 {[%emt 0:01:25]} Nbd7 {[%emt 0:02:36]} 8. Nbd2 {[%emt 0:00:30]} Qe7 {[%emt 0:02:03]} 9. O-O {[%emt 0:02:48]} Ne8 {[%emt 0:09:09]} 10. Qb3 {[%emt 0:05:27]} Kh8 {[%emt 0:01:58]} 11. d4 {[%emt 0:05:20]} e4 {[%emt 0:02:47]} 12. Ne1 {[%emt 0:00:32]} f5 {[%emt 0:01:30]} 13. Nc2 {[%emt 0:18:00]} Nef6 {[%emt 0:01:23]} 14. Na3 {[%emt 0:02:21]} Rg8 {[%emt 0:06:12]} 15. Rac1 {[%emt 0:14:44]} g5 {[%emt 0:06:07]} 16. c5 {[%emt 0:01:41]} d5 {[%emt 0:00:38]} 17. Nb5 {[%emt 0:07:56]} Nf8 {[%emt 0:02:11]} 18. f3 {[%emt 0:05:13]} a6 {[%emt 0:08:25]} 19. Nc3 {[%emt 0:01:30]} c6 {[%emt 0:00:11]} 20. fxe4 fxe4 {[%emt 0:00:26]} 21. Kf2 {[%emt 0:08:15]} Qc7 {[%emt 0:08:17]} 22. Rh1 {[%emt 0:05:27]} Ng4+ {[%emt 0:12:03]} 23. Bxg4 {[%emt 0:00:30]} Bxg4 {[%emt 0:00:06]} 24. Rcf1 {[%emt 0:07:37]} Ne6 {[%emt 0:01:30]} 25. Ne2 {[%emt 0:03:33]} Raf8+ {[%emt 0:01:56]} 26. Ke1 {[%emt 0:00:40]} Rf7 {[%emt 0:07:51]} 27. h3 {[%emt 0:03:45]} Bxe2 {[%emt 0:02:57]} 28. Rxf7 {[%emt 0:01:06]} Qxf7 {[%emt 0:00:06]} 29. Kxe2 {[%emt 0:00:05]} Rf8 {[%emt 0:01:25]} 30. Rf1 {[%emt 0:02:28]} Qh5+ {[%emt 0:00:09]} 31. Ke1 {[%emt 0:00:16]} Qh4+ {[%emt 0:02:05]} 32. Ke2 {[%emt 0:00:01]} Qg3 {[%emt 0:01:04]} 33. Rxf8+ {[%emt 0:00:02]} Nxf8 {[%emt 0:00:22]} 34. Kf1 {[%emt 0:00:38]} Ng6 {[%emt 0:00:12]} 35. Qd1 {[%emt 0:03:12]} Qxe3 {[%emt 0:00:31]} 36. Qe2 {[%emt 0:00:24]} Qf4+ {[%emt 0:09:04]} 37. Qf2 {[%emt 0:00:31]} e3 {[%emt 0:05:53]} 38. Qxf4 {[%emt 0:00:02]} Nxf4 {[%emt 0:00:05]} 39. Nf3 {[%emt 0:00:05]} e2+ {[%emt 0:00:38]} 40. Kg1 {[%emt 0:00:00]} Nd3 {[%emt 0:00:00]} 41. Bc3 {[%emt 0:00:41]} Kg8 {[%emt 0:02:56]} 42. g4 {[%emt 0:03:04]} h6 {[%emt 0:04:21]} 43. Kg2 {[%emt 0:04:09]} Kf7 {[%emt 0:00:43]} 44. Kg3 {[%emt 0:01:18]} Ke6 {[%emt 0:00:33]} 45. h4 {[%emt 0:00:43]} e1=Q+ {[%emt 0:07:30]} 46. Bxe1 {[%emt 0:00:10]} Nxe1 {[%emt 0:00:07]} 47. Nxe1 {[%emt 0:00:09]} Bxd4 {[%emt 0:00:14]} 48. hxg5 {[%emt 0:05:38]} hxg5 {[%emt 0:00:09]} 49. Nd3 {[%emt 0:00:36]} Bc3 {[%emt 0:04:33]} 50. Kf3 {[%emt 0:00:21]} a5 {[%emt 0:02:12]} 51. a3 {[%emt 0:02:41]} axb4 {[%emt 0:02:35]} 52. axb4 {[%emt 0:00:03]} Kd7 53. Ke2 {[%emt 0:01:56]} Kc7 {[%emt 0:00:42]} 54. Kd1 {[%emt 0:00:43]} b6 {[%emt 0:04:09]} 55. Kc2 {[%emt 0:00:15]} Bd4 {[%emt 0:00:13]} 56. Kb3 {[%emt 0:01:24]} Kb7 {[%emt 0:00:28]} 57. Ka3 {[%emt 0:01:32]} Ka6 {[%emt 0:00:09]} 58. Ka4 {[%emt 0:00:11]} Be3 {[%emt 0:00:25]} 59. Ne5 bxc5 {[%emt 0:06:06]} 60. bxc5 {[%emt 0:02:01]} Bxc5 {[%emt 0:00:26]} 61. Nxc6 {[%emt 0:00:13]} Kb6 {[%emt 0:00:25]} 62. Ne5 {[%emt 0:00:25]} Be3 {[%emt 0:00:28]} 63. Kb4 {[%emt 0:04:57]} Bd2+ {[%emt 0:00:11]} 64. Kb3 {[%emt 0:00:06]} Kc5 {[%emt 0:01:32]} 65. Nf3 {[%emt 0:00:31]} Be3 {[%emt 0:01:57]} 66. Kc3 {[%emt 0:00:34]} d4+ {[%emt 0:00:59]} 67. Kd3 {[%emt 0:00:12]} Kd5 {[%emt 0:00:11]} 68. Ne1 {[%emt 0:03:26]} Ke5 {[%emt 0:00:18]} 69. Ng2 {[%emt 0:01:38]} Bg1 {[%emt 0:00:36]} 70. Ke2 {[%emt 0:00:41]} Ke4 {[%emt 0:00:15]} 71. Kf1 {[%emt 0:02:33]} d3 {[%emt 0:00:17]} 72. Ke1 {[%emt 0:02:43]} Kf3 {[%emt 0:00:08]} 0-1

[Event "22nd ETCC Women 2019"]
[Site "Batumi"]
[Date "2019.10.28"]
[Round "5.25"]
[White "Peptan, Corina-Isabela"]
[Black "Unuk, Laura"]
[Result "1-0"]
[ECO "E12"]
[WhiteElo "2371"]
[BlackElo "2278"]
[Annotator "NA"]
[PlyCount "93"]
[EventDate "2019.10.24"]
[EventType "team-tourn"]
[EventCountry "GEO"]
[SourceTitle "playchess.com"]
[Source "ChessBase"]
[SourceQuality "1"]
[WhiteTeam "Romania"]
[BlackTeam "Slovenia"]
[WhiteTeamCountry "ROU"]
[BlackTeamCountry "SLO"]
[TimeControl "40/5400+30:1800+30"]

1. c4 {[%emt 0:00:00]} Nf6 {[%emt 0:00:05]} 2. d4 {[%emt 0:00:17]} e6 {[%emt 0:00:07]} 3. Nf3 {[%emt 0:00:05]} b6 {[%emt 0:00:53]} 4. a3 {[%emt 0:00:52]} Ba6 {[%emt 0:09:17]} 5. Qc2 {[%emt 0:00:58]} d5 {[%emt 0:10:13]} 6. cxd5 {[%emt 0:01:28]} exd5 {[%emt 0:00:47]} 7. g3 {[%emt 0:15:19]} Bd6 {[%emt 0:04:40]} 8. Nc3 {[%emt 0:00:07]} O-O {[%emt 0:05:03]} 9. Bg2 {[%emt 0:00:09]} Nbd7 {[%emt 0:03:00]} 10. Nh4 {[%emt 0:06:32]} c5 {[%emt 0:16:21]} 11. Nf5 {[%emt 0:23:17]} cxd4 {[%emt 0:02:55]} 12. Nxd4 {[%emt 0:00:17]} Bc5 {[%emt 0:08:40]} 13. Qd1 {[%emt 0:11:43]} Rc8 {[%emt 0:10:54]} 14. O-O {[%emt 0:01:05]} Re8 {[%emt 0:00:12]} 15. Ncb5 {[%emt 0:07:44]} Ne5 {[%emt 0:03:41]} 16. b4 {[%emt 0:03:08]} Bxd4 {[%emt 0:08:42]} 17. Nxd4 {[%emt 0:00:06]} Qd7 {[%emt 0:00:02]} 18. a4 {[%emt 0:02:37]} Bc4 {[%emt 0:02:02]} 19. Re1 {[%emt 0:15:32]} a6 {[%emt 0:00:12]} 20. h3 {[%emt 0:03:23]} h6 {[%emt 0:02:06]} 21. Bb2 {[%emt 0:00:34]} Ne4 {[%emt 0:00:29]} 22. Qb1 {[%emt 0:01:29]} Qd6 {[%emt 0:05:18]} 23. b5 {[%emt 0:02:26]} a5 {[%emt 0:02:32]} 24. f4 {[%emt 0:00:47]} Nd7 {[%emt 0:01:56]} 25. Nf5 {[%emt 0:00:27]} Qg6 {[%emt 0:00:39]} 26. g4 {[%emt 0:00:43]} h5 {[%emt 0:01:15]} 27. Nxg7 {[%emt 0:00:43]} hxg4 {[%emt 0:00:04]} 28. h4 {[%emt 0:00:51]} Re7 {[%emt 0:00:48]} 29. h5 {[%emt 0:00:47]} Qh7 {[%emt 0:00:28]} 30. h6 {[%emt 0:00:48]} g3 {[%emt 0:00:08]} 31. Bxe4 {[%emt 0:00:32]} dxe4 {[%emt 0:01:24]} 32. Ra3 {[%emt 0:00:35]} Bd3 {[%emt 0:00:32]} 33. exd3 {[%emt 0:00:08]} Qxh6 {[%emt 0:00:12]} 34. Re2 {[%emt 0:00:02]} Qxf4 {[%emt 0:00:29]} 35. dxe4 {[%emt 0:00:33]} Ne5 {[%emt 0:00:44]} 36. Nf5 {[%emt 0:00:21]} Re6 {[%emt 0:00:34]} 37. Qf1 {[%emt 0:00:16]} Qxf1+ {[%emt 0:00:33]} 38. Kxf1 {[%emt 0:00:04]} Rc4 {[%emt 0:00:28]} 39. Rxg3+ {[%emt 0:00:31]} Ng6 {[%emt 0:00:26]} 40. Rh2 {[%emt 0:00:00]} Kf8 {[%emt 0:00:00]} 41. Ba3+ {[%emt 0:02:43]} Kg8 {[%emt 0:01:49]} 42. Nh6+ {[%emt 0:00:46]} Kg7 {[%emt 0:00:31]} 43. Nf5+ {[%emt 0:00:18]} Kg8 {[%emt 0:00:27]} 44. Bb2 {[%emt 0:03:46]} Kf8 {[%emt 0:00:41]} 45. Rgh3 {[%emt 0:01:48]} f6 {[%emt 0:03:24]} 46. Ba3+ {[%emt 0:00:13]} Kg8 {[%emt 0:01:31]} 47. Rh7 {[%emt 0:00:18]} 1-0

[Event "22nd ETCC Women 2019"]
[Site "Batumi"]
[Date "2019.10.28"]
[Round "5.25"]
[White "Stojkovska, Monika"]
[Black "Goossens, Hanne"]
[Result "0-1"]
[ECO "B47"]
[WhiteElo "2108"]
[BlackElo "2156"]
[Annotator "NA"]
[PlyCount "70"]
[EventDate "2019.10.24"]
[EventType "team-tourn"]
[EventCountry "GEO"]
[SourceTitle "playchess.com"]
[Source "ChessBase"]
[SourceQuality "1"]
[WhiteTeam "Macedonia"]
[BlackTeam "Belgium"]
[WhiteTeamCountry "MKD"]
[BlackTeamCountry "BEL"]
[TimeControl "40/5400+30:1800+30"]

1. e4 {[%emt 0:00:00]} c5 {[%emt 0:00:00]} 2. Nf3 {[%emt 0:00:00]} e6 {[%emt 0:00:00]} 3. Nc3 {[%emt 0:00:00]} Nc6 {[%emt 0:00:03]} 4. d4 {[%emt 0:00:00]} cxd4 {[%emt 0:00:05]} 5. Nxd4 {[%emt 0:00:00]} Qc7 {[%emt 0:00:20]} 6. f4 {[%emt 0:00:51]} Nxd4 {[%emt 0:00:29]} 7. Qxd4 {[%emt 0:00:06]} b6 {[%emt 0:00:11]} 8. Bd3 {[%emt 0:05:25]} Bb7 {[%emt 0:02:33]} 9. Qf2 {[%emt 0:01:25]} Nf6 {[%emt 0:02:26]} 10. Qg3 {[%emt 0:06:27]} h5 {[%emt 0:17:12]} 11. Bd2 {[%emt 0:13:04]} h4 {[%emt 0:01:42]} 12. Qf3 {[%emt 0:03:43]} a6 {[%emt 0:10:41]} 13. O-O-O {[%emt 0:02:25]} b5 {[%emt 0:03:24]} 14. Rde1 {[%emt 0:33:49]} b4 {[%emt 0:08:58]} 15. Nd1 {[%emt 0:00:03]} Rc8 {[%emt 0:05:06]} 16. Qe2 {[%emt 0:02:58]} Be7 {[%emt 0:06:39]} 17. Kb1 {[%emt 0:03:29]} a5 {[%emt 0:06:11]} 18. g4 {[%emt 0:03:34]} d5 {[%emt 0:05:15]} 19. Nf2 {[%emt 0:07:45]} dxe4 {[%emt 0:08:54]} 20. Nxe4 {[%emt 0:00:04]} Nxe4 {[%emt 0:01:15]} 21. Bxe4 {[%emt 0:00:25]} Bxe4 {[%emt 0:01:18]} 22. Qxe4 {[%emt 0:00:02]} O-O {[%emt 0:04:10]} 23. Rc1 {[%emt 0:00:39]} Rfd8 {[%emt 0:00:51]} 24. Be3 {[%emt 0:00:46]} a4 {[%emt 0:04:38]} 25. g5 {[%emt 0:00:50]} a3 {[%emt 0:02:31]} 26. Rcd1 {[%emt 0:02:26]} axb2 {[%emt 0:01:47]} 27. g6 {[%emt 0:01:08]} Bf6 {[%emt 0:01:56]} 28. gxf7+ {[%emt 0:00:15]} Kxf7 {[%emt 0:00:08]} 29. Rxd8 {[%emt 0:00:21]} Rxd8 {[%emt 0:00:33]} 30. f5 {[%emt 0:02:40]} exf5 {[%emt 0:01:08]} 31. Qxf5 {[%emt 0:00:07]} Qd6 {[%emt 0:00:13]} 32. Qf3 {[%emt 0:00:25]} b3 {[%emt 0:01:00]} 33. Qb7+ {[%emt 0:10:16]} Kf8 {[%emt 0:00:53]} 34. Bc5 {[%emt 0:00:57]} bxc2+ {[%emt 0:00:59]} 35. Kxc2 {[%emt 0:00:08]} Qxc5+ {[%emt 0:00:04]} 0-1

[Event "22nd ETCC Women 2019"]
[Site "Batumi"]
[Date "2019.10.28"]
[Round "5.26"]
[White "Hrescak, Ivana"]
[Black "Cosma, Elena-Luminita"]
[Result "1/2-1/2"]
[ECO "D35"]
[WhiteElo "2226"]
[BlackElo "2313"]
[Annotator "NA"]
[PlyCount "85"]
[EventDate "2019.10.24"]
[EventType "team-tourn"]
[EventCountry "GEO"]
[SourceTitle "playchess.com"]
[Source "ChessBase"]
[SourceQuality "1"]
[WhiteTeam "Slovenia"]
[BlackTeam "Romania"]
[WhiteTeamCountry "SLO"]
[BlackTeamCountry "ROU"]
[TimeControl "40/5400+30:1800+30"]

1. d4 {[%emt 0:00:00]} d5 {[%emt 0:00:00]} 2. c4 {[%emt 0:00:00]} e6 {[%emt 0:00:00]} 3. Nc3 {[%emt 0:00:00]} Nf6 {[%emt 0:00:00]} 4. cxd5 {[%emt 0:00:00]} exd5 {[%emt 0:00:00]} 5. Bg5 {[%emt 0:00:00]} c6 {[%emt 0:00:27]} 6. e3 {[%emt 0:00:08]} Be7 {[%emt 0:00:04]} 7. Bd3 {[%emt 0:00:11]} Nbd7 {[%emt 0:00:06]} 8. Qc2 {[%emt 0:00:19]} Nh5 {[%emt 0:00:23]} 9. Bxe7 {[%emt 0:00:07]} Qxe7 {[%emt 0:00:05]} 10. Nge2 {[%emt 0:00:16]} g6 {[%emt 0:00:11]} 11. O-O-O {[%emt 0:00:49]} Nb6 {[%emt 0:01:33]} 12. Ng3 {[%emt 0:00:27]} Nf6 {[%emt 0:10:39]} 13. Kb1 {[%emt 0:06:47]} Be6 {[%emt 0:00:49]} 14. Rc1 {[%emt 0:03:43]} O-O-O {[%emt 0:14:37]} 15. Na4 {[%emt 0:04:42]} Nfd7 {[%emt 0:01:21]} 16. Nc5 {[%emt 0:16:06]} Nxc5 {[%emt 0:02:27]} 17. dxc5 {[%emt 0:00:38]} Nc4 {[%emt 0:04:58]} 18. Ka1 {[%emt 0:03:41]} Kb8 {[%emt 0:09:28]} 19. Qc3 {[%emt 0:03:23]} Qc7 {[%emt 0:18:01]} 20. Bxc4 {[%emt 0:09:19]} dxc4 {[%emt 0:00:08]} 21. Ne4 {[%emt 0:00:43]} Bd5 {[%emt 0:07:36]} 22. Nd6 {[%emt 0:01:27]} Bxg2 {[%emt 0:01:11]} 23. Rhg1 {[%emt 0:02:51]} Bd5 {[%emt 0:01:38]} 24. e4 {[%emt 0:03:26]} Be6 {[%emt 0:00:04]} 25. f4 {[%emt 0:03:44]} Rhf8 {[%emt 0:05:05]} 26. f5 {[%emt 0:02:40]} gxf5 {[%emt 0:00:17]} 27. exf5 {[%emt 0:00:16]} Bd5 {[%emt 0:00:11]} 28. Rg7 {[%emt 0:01:47]} b6 {[%emt 0:07:04]} 29. Rxh7 {[%emt 0:06:50]} bxc5 {[%emt 0:00:08]} 30. Nxc4 {[%emt 0:00:29]} Bxc4 {[%emt 0:02:54]} 31. Qxc4 {[%emt 0:00:38]} Rd5 {[%emt 0:00:11]} 32. Qg4 {[%emt 0:06:41]} Qe5 {[%emt 0:04:03]} 33. Rxf7 {[%emt 0:05:56]} Rxf7 {[%emt 0:02:22]} 34. Qg8+ {[%emt 0:00:05]} Kb7 {[%emt 0:01:10]} 35. Qxf7+ {[%emt 0:00:09]} Kb6 {[%emt 0:00:37]} 36. Qe6 {[%emt 0:14:38]} Qxh2 {[%emt 0:03:04]} 37. f6 {[%emt 0:02:22]} Qf4 {[%emt 0:01:19]} 38. Rb1 {[%emt 0:00:53]} Rf5 {[%emt 0:00:41]} 39. Qb3+ {[%emt 0:00:45]} Ka6 {[%emt 0:02:21]} 40. Qa3+ {[%emt 0:00:00]} Kb6 {[%emt 0:00:00]} 41. Qb3+ {[%emt 0:02:27]} Ka6 {[%emt 0:00:10]} 42. Qa3+ {[%emt 0:05:07]} Kb6 {[%emt 0:00:12]} 43. Qb3+ {[%emt 0:03:10]} 1/2-1/2

[Event "22nd ETCC Women 2019"]
[Site "Batumi"]
[Date "2019.10.28"]
[Round "5.26"]
[White "Vanduyfhuys, Daria"]
[Black "Bejatovic, Bojana"]
[Result "0-1"]
[ECO "E98"]
[WhiteElo "1983"]
[BlackElo "2004"]
[Annotator "NA"]
[PlyCount "72"]
[EventDate "2019.10.24"]
[EventType "team-tourn"]
[EventCountry "GEO"]
[SourceTitle "playchess.com"]
[Source "ChessBase"]
[SourceQuality "1"]
[WhiteTeam "Belgium"]
[BlackTeam "Macedonia"]
[WhiteTeamCountry "BEL"]
[BlackTeamCountry "MKD"]
[TimeControl "40/5400+30:1800+30"]

1. d4 {[%emt 0:00:00]} Nf6 {[%emt 0:00:00]} 2. c4 {[%emt 0:00:00]} g6 {[%emt 0:00:00]} 3. Nc3 {[%emt 0:00:00]} Bg7 {[%emt 0:00:00]} 4. e4 {[%emt 0:00:00]} d6 {[%emt 0:00:00]} 5. Nf3 {[%emt 0:00:15]} O-O {[%emt 0:00:00]} 6. Be2 {[%emt 0:00:05]} e5 {[%emt 0:00:01]} 7. O-O {[%emt 0:00:09]} Nc6 {[%emt 0:00:06]} 8. d5 {[%emt 0:00:07]} Ne7 {[%emt 0:00:06]} 9. Ne1 {[%emt 0:01:56]} Nd7 {[%emt 0:01:00]} 10. Nd3 {[%emt 0:00:25]} f5 {[%emt 0:00:36]} 11. f3 {[%emt 0:00:34]} f4 {[%emt 0:00:27]} 12. Bd2 {[%emt 0:01:10]} g5 {[%emt 0:01:41]} 13. b4 {[%emt 0:01:25]} Nf6 {[%emt 0:00:51]} 14. c5 {[%emt 0:01:07]} Ng6 {[%emt 0:03:38]} 15. Rc1 {[%emt 0:03:52]} Rf7 {[%emt 0:04:22]} 16. a4 {[%emt 0:10:29]} h5 {[%emt 0:03:36]} 17. Nf2 {[%emt 0:02:23]} Bf8 {[%emt 0:03:50]} 18. cxd6 {[%emt 0:05:15]} cxd6 {[%emt 0:00:53]} 19. Kh1 {[%emt 0:07:16]} Rg7 {[%emt 0:03:15]} 20. h3 {[%emt 0:19:17]} Nh8 {[%emt 0:11:02]} 21. Nb5 {[%emt 0:14:04]} a6 {[%emt 0:04:55]} 22. Nc3 {[%emt 0:03:52]} Nf7 {[%emt 0:02:43]} 23. a5 {[%emt 0:00:12]} g4 {[%emt 0:03:31]} 24. Rg1 {[%emt 0:07:27]} g3 {[%emt 0:11:11]} 25. Nd3 {[%emt 0:00:36]} Ng4 {[%emt 0:03:08]} 26. fxg4 {[%emt 0:07:44]} hxg4 {[%emt 0:00:12]} 27. Na4 {[%emt 0:03:29]} Qh4 {[%emt 0:15:28]} 28. Rxc8 {[%emt 0:01:27]} gxh3 {[%emt 0:00:32]} 29. Rxf8+ {[%emt 0:02:33]} Rxf8 {[%emt 0:00:07]} 30. Bf3 {[%emt 0:02:47]} Ng5 {[%emt 0:00:22]} 31. Bg4 {[%emt 0:01:55]} hxg2+ {[%emt 0:00:53]} 32. Kxg2 {[%emt 0:00:06]} f3+ {[%emt 0:00:17]} 33. Kf1 {[%emt 0:00:28]} g2+ {[%emt 0:02:29]} 34. Rxg2 {[%emt 0:00:07]} fxg2+ {[%emt 0:00:02]} 35. Kxg2 {[%emt 0:00:06]} Nxe4 {[%emt 0:00:02]} 36. Be1 {[%emt 0:01:09]} Rxg4+ {[%emt 0:00:09]} 0-1

[Event "22nd ETCC Women 2019"]
[Site "Batumi"]
[Date "2019.10.28"]
[Round "5.27"]
[White "Sandu, Mihaela"]
[Black "Rozman, Monika"]
[Result "1/2-1/2"]
[ECO "C54"]
[WhiteElo "2260"]
[BlackElo "2122"]
[Annotator "NA"]
[PlyCount "79"]
[EventDate "2019.10.24"]
[EventType "team-tourn"]
[EventCountry "GEO"]
[SourceTitle "playchess.com"]
[Source "ChessBase"]
[SourceQuality "1"]
[WhiteTeam "Romania"]
[BlackTeam "Slovenia"]
[WhiteTeamCountry "ROU"]
[BlackTeamCountry "SLO"]
[TimeControl "40/5400+30:1800+30"]

1. e4 {[%emt 0:00:00]} e5 {[%emt 0:00:00]} 2. Nf3 {[%emt 0:00:00]} Nc6 {[%emt 0:00:00]} 3. Bc4 {[%emt 0:00:00]} Bc5 {[%emt 0:00:00]} 4. c3 {[%emt 0:00:00]} Nf6 {[%emt 0:00:00]} 5. d3 {[%emt 0:00:01]} O-O {[%emt 0:00:06]} 6. O-O {[%emt 0:00:07]} d6 {[%emt 0:00:08]} 7. Bb3 {[%emt 0:00:09]} a6 {[%emt 0:01:07]} 8. Nbd2 {[%emt 0:00:51]} h6 {[%emt 0:00:11]} 9. h3 {[%emt 0:00:36]} Be6 {[%emt 0:00:34]} 10. Re1 {[%emt 0:02:36]} Re8 {[%emt 0:00:41]} 11. Nf1 {[%emt 0:00:49]} Bxb3 {[%emt 0:10:45]} 12. Qxb3 {[%emt 0:00:29]} Qd7 {[%emt 0:01:52]} 13. Be3 {[%emt 0:05:58]} Ba7 {[%emt 0:03:30]} 14. Bxa7 {[%emt 0:03:53]} Rxa7 {[%emt 0:00:46]} 15. Ng3 {[%emt 0:01:00]} Ne7 {[%emt 0:10:47]} 16. d4 {[%emt 0:02:50]} Ng6 {[%emt 0:00:31]} 17. Rad1 {[%emt 0:19:53]} Qc6 {[%emt 0:01:11]} 18. Qc2 {[%emt 0:00:48]} Raa8 {[%emt 0:02:50]} 19. Rd2 {[%emt 0:02:30]} Rad8 {[%emt 0:04:34]} 20. Nf5 {[%emt 0:22:01]} Qb6 {[%emt 0:06:59]} 21. dxe5 {[%emt 0:01:19]} dxe5 {[%emt 0:04:13]} 22. Red1 {[%emt 0:01:19]} Rxd2 {[%emt 0:02:09]} 23. Rxd2 {[%emt 0:00:05]} Qc6 {[%emt 0:02:00]} 24. Ng3 {[%emt 0:00:12]} Re7 {[%emt 0:03:54]} 25. Rd8+ {[%emt 0:05:54]} Kh7 {[%emt 0:04:02]} 26. Nd2 {[%emt 0:04:28]} Rd7 {[%emt 0:04:23]} 27. Rxd7 {[%emt 0:01:07]} Nxd7 {[%emt 0:00:08]} 28. b4 {[%emt 0:07:22]} Kg8 {[%emt 0:02:31]} 29. a4 {[%emt 0:01:11]} Nb6 {[%emt 0:02:41]} 30. a5 {[%emt 0:00:15]} Nc4 {[%emt 0:00:40]} 31. Qd3 {[%emt 0:01:35]} Nxd2 {[%emt 0:00:14]} 32. Qxd2 {[%emt 0:00:03]} Nf4 {[%emt 0:04:13]} 33. Qd8+ {[%emt 0:08:17]} Kh7 {[%emt 0:00:01]} 34. Qf8 {[%emt 0:00:18]} Qxc3 {[%emt 0:07:42]} 35. Nf5 {[%emt 0:02:14]} Ne6 {[%emt 0:00:34]} 36. Qxf7 {[%emt 0:00:26]} Qc1+ {[%emt 0:00:15]} 37. Kh2 {[%emt 0:00:04]} Qf4+ {[%emt 0:00:05]} 38. Kg1 {[%emt 0:00:05]} Qc1+ {[%emt 0:00:10]} 39. Kh2 {[%emt 0:00:04]} Qf4+ {[%emt 0:00:05]} 40. Kg1 {[%emt 0:00:00]} 1/2-1/2

[Event "22nd ETCC Women 2019"]
[Site "Batumi"]
[Date "2019.10.28"]
[Round "5.27"]
[White "Manova, Ivana"]
[Black "Mabille, Natacha"]
[Result "0-1"]
[ECO "C54"]
[WhiteElo "1795"]
[BlackElo "1939"]
[Annotator "NA"]
[PlyCount "60"]
[EventDate "2019.10.24"]
[EventType "team-tourn"]
[EventCountry "GEO"]
[SourceTitle "playchess.com"]
[Source "ChessBase"]
[SourceQuality "1"]
[WhiteTeam "Macedonia"]
[BlackTeam "Belgium"]
[WhiteTeamCountry "MKD"]
[BlackTeamCountry "BEL"]
[TimeControl "40/5400+30:1800+30"]

1. e4 {[%emt 0:00:00]} e5 {[%emt 0:00:00]} 2. Nf3 {[%emt 0:00:00]} Nc6 {[%emt 0:00:23]} 3. d4 {[%emt 0:00:11]} exd4 {[%emt 0:00:42]} 4. Bc4 {[%emt 0:00:18]} Bc5 {[%emt 0:01:01]} 5. c3 {[%emt 0:00:25]} Nf6 {[%emt 0:01:19]} 6. e5 {[%emt 0:02:29]} d5 {[%emt 0:00:17]} 7. Bb5 {[%emt 0:01:11]} Ne4 8. cxd4 {[%emt 0:01:12]} Bb6 {[%emt 0:01:30]} 9. O-O {[%emt 0:03:09]} O-O {[%emt 0:01:24]} 10. h3 {[%emt 0:11:15]} f6 {[%emt 0:07:23]} 11. Nc3 {[%emt 0:10:00]} fxe5 {[%emt 0:10:57]} 12. Bxc6 {[%emt 0:00:46]} bxc6 {[%emt 0:00:11]} 13. Nxe4 {[%emt 0:13:15]} dxe4 {[%emt 0:00:18]} 14. Nxe5 {[%emt 0:02:58]} Ba6 {[%emt 0:15:54]} 15. Qb3+ {[%emt 0:00:30]} Kh8 {[%emt 0:01:08]} 16. Rd1 {[%emt 0:03:17]} Qf6 {[%emt 0:06:22]} 17. Be3 {[%emt 0:06:27]} Rad8 {[%emt 0:01:32]} 18. Rac1 {[%emt 0:03:29]} Rd6 {[%emt 0:24:11]} 19. Qc2 {[%emt 0:07:17]} Bd3 {[%emt 0:07:08]} 20. Qc3 {[%emt 0:10:21]} h6 {[%emt 0:06:08]} 21. Nxd3 {[%emt 0:05:05]} exd3 {[%emt 0:00:36]} 22. Rxd3 {[%emt 0:00:27]} Rfd8 {[%emt 0:01:39]} 23. Rcd1 {[%emt 0:02:00]} Qf5 {[%emt 0:01:22]} 24. R3d2 {[%emt 0:01:33]} Rg6 {[%emt 0:00:55]} 25. Qd3 {[%emt 0:05:13]} Qe6 {[%emt 0:01:13]} 26. b4 {[%emt 0:01:12]} Rd6 {[%emt 0:01:30]} 27. Kh2 {[%emt 0:01:17]} Rd5 {[%emt 0:00:58]} 28. a3 {[%emt 0:06:03]} Rh5 {[%emt 0:01:34]} 29. Bf4 {[%emt 0:01:26]} Bxd4 {[%emt 0:06:07]} 30. Qxd4 {[%emt 0:00:52]} Rxg2+ {[%emt 0:00:16]} 0-1